bitfinex-derivatives/quotes_BTCF0:USTF0_20251214
["timestamp","ask_amount","ask_price","bid_price","bid_amount"]
[1765729409408,0.05958661,89327.0,89326.0,0.06001]
[1765729410309,0.06058661,89327.0,89326.0,0.06001]
[1765729410711,0.05658661,89327.0,89326.0,0.05901]
[1765729410910,0.05758661,89327.0,89326.0,0.05901]
[1765729411312,0.00208661,89327.0,89326.0,0.05901]
[1765729411503,0.02901661,89327.0,89326.0,0.05901]
[1765729411717,0.05958661,89327.0,89326.0,0.06001]
[1765729412112,0.05658661,89327.0,89326.0,0.05901]
[1765729412314,0.05658661,89327.0,89324.0,0.3608]
[1765729412315,0.07338,89325.0,89324.0,0.3608]
[1765729412515,0.0555,89323.0,89322.0,0.00039151]
[1765729412818,0.0555,89323.0,89322.0,0.05940151]
[1765729413415,0.00208661,89327.0,89326.0,0.05901]
[1765729413806,0.00108661,89327.0,89326.0,0.05901]
[1765729414007,0.00408661,89327.0,89326.0,0.06001]
[1765729414617,0.00208661,89327.0,89326.0,0.05901]
[1765729415029,0.00108661,89327.0,89326.0,0.05901]
[1765729415230,8.661e-05,89327.0,89326.0,0.05901]
[1765729415824,8.661e-05,89327.0,89326.0,0.06001]
[1765729416031,8.661e-05,89327.0,89326.0,0.06201]
[1765729416335,8.661e-05,89327.0,89326.0,0.073204]
[1765729417226,0.02801661,89327.0,89326.0,0.073204]
[1765729417430,8.661e-05,89327.0,89326.0,0.073204]
[1765729417833,0.02801661,89327.0,89326.0,0.073204]
[1765729418031,0.05558661,89327.0,89326.0,0.073204]
[1765729418234,0.05558661,89327.0,89326.0,0.014194]
[1765729418429,0.05558661,89327.0,89326.0,0.003]
[1765729419838,0.05558661,89327.0,89326.0,0.03276]
[1765729420228,0.05558661,89327.0,89326.0,0.06201]
[1765729421035,0.05558661,89327.0,89326.0,0.003]
[1765729421933,0.41638661,89327.0,89326.0,0.003]
[1765729424337,0.42758051,89327.0,89326.0,0.003]
[1765729425434,0.06678051,89327.0,89326.0,0.003]
[1765729428741,0.06678051,89327.0,89326.0,0.043954]
[1765729429242,0.06678051,89327.0,89326.0,0.073204]
[1765729429243,0.05558661,89327.0,89326.0,0.073204]
[1765729429632,0.05558661,89327.0,89326.0,0.434004]
[1765729430242,8.661e-05,89327.0,89326.0,0.434004]
[1765729434046,0.05558661,89327.0,89326.0,0.434004]
[1765729435747,0.02801661,89327.0,89326.0,0.434004]
[1765729435948,8.661e-05,89327.0,89326.0,0.434004]
[1765729437355,0.05734661,89327.0,89326.0,0.434004]
[1765729437740,0.05734661,89327.0,89326.0,0.374994]
[1765729437939,0.05734661,89327.0,89326.0,0.431084]
[1765729438536,0.05734661,89327.0,89326.0,0.3638]
[1765729438843,0.05734661,89327.0,89326.0,0.39114]
[1765729439445,0.05734661,89327.0,89326.0,0.03034]
[1765729439751,0.05734661,89327.0,89326.0,0.003]
[1765729439957,0.06854051,89327.0,89326.0,0.003]
[1765729441735,0.06854051,89327.0,89326.0,0.03034]
[1765729441942,0.05734661,89327.0,89326.0,0.041534]
[1765729442343,0.02950661,89327.0,89326.0,0.070284]
[1765729442544,8.661e-05,89327.0,89326.0,0.070284]
[1765729443657,0.05734661,89327.0,89326.0,0.070284]
[1765729445940,0.05734661,89327.0,89326.0,0.003]
[1765729450050,0.05726,89323.0,89322.0,0.00039151]
[1765729450250,0.41806,89323.0,89322.0,0.00039151]
[1765729450458,0.0684551,89317.0,89314.0,0.04000356]
[1765729451056,0.05726,89315.0,89314.0,0.04000356]
[1765729451260,0.0179,89320.0,89313.0,0.04000356]
[1765729451261,0.0684555,89314.0,89313.0,0.04000356]
[1765729451762,0.0684555,89314.0,89313.0,0.06734356]
[1765729452247,0.0684555,89314.0,89312.0,0.04000356]
[1765729452443,0.05726,89313.0,89312.0,0.04000356]
[1765729454358,0.0121955,89314.0,89308.0,0.04000356]
[1765729454359,0.0684561,89309.0,89308.0,0.04000356]
[1765729454656,0.05726,89308.0,89307.0,0.3608]
[1765729454857,0.05726,89308.0,89305.0,0.04017148]
[1765729454858,0.06812,89306.0,89305.0,0.00016792]
[1765729455056,0.06812,89306.0,89297.0,0.04012793]
[1765729455057,0.05726,89298.0,89297.0,0.00012437]
[1765729455256,0.0684575,89298.0,89297.0,0.00012437]
[1765729455453,0.0684585,89290.0,89289.0,0.3608]
[1765729456360,0.06856234,89290.0,89289.0,0.3608]
[1765729457063,0.05726,89283.0,89282.0,0.0111994]
[1765729457364,0.05726,89283.0,89282.0,0.0385394]
[1765729457563,0.05726,89283.0,89282.0,0.0672894]
[1765729458664,0.06026,89283.0,89282.0,0.0682894]
[1765729458861,0.06126,89283.0,89282.0,0.0682894]
[1765729461166,0.06026,89283.0,89282.0,0.0682894]
[1765729461658,0.06026,89283.0,89282.0,0.0672894]
[1765729461864,0.06026,89283.0,89282.0,0.0682894]
[1765729462663,0.06126,89283.0,89282.0,0.0682894]
[1765729463466,0.05926,89283.0,89282.0,0.0682894]
[1765729463672,0.003,89283.0,89282.0,0.0682894]
[1765729464166,0.004,89283.0,89282.0,0.0682894]
[1765729464768,0.003,89283.0,89282.0,0.0682894]
[1765729464959,0.002,89283.0,89282.0,0.0682894]
[1765729465155,0.003,89283.0,89282.0,0.0682894]
[1765729465863,0.002,89283.0,89282.0,0.0712894]
[1765729466064,0.00010384,89290.0,89289.0,0.0666686]
[1765729466264,0.00010384,89290.0,89289.0,0.4274686]
[1765729466664,0.00016792,89298.0,89297.0,0.0677376]
[1765729467265,0.00016792,89298.0,89297.0,0.4285376]
[1765729467656,0.00010714,89298.0,89297.0,0.4298676]
[1765729467869,0.00110714,89298.0,89297.0,0.4298676]
[1765729469168,0.00110714,89298.0,89297.0,0.4318676]
[1765729469867,0.00010714,89298.0,89297.0,0.4298676]
[1765729470063,0.00010714,89298.0,89297.0,0.4328676]
[1765729470566,0.00016792,89306.0,89305.0,0.0690666]
[1765729470768,0.00016792,89306.0,89305.0,0.4298666]
[1765729471164,0.05886792,89306.0,89305.0,0.4298666]
[1765729471369,0.05886792,89306.0,89305.0,0.05787]
[1765729471873,0.05986792,89306.0,89305.0,0.05787]
[1765729472064,0.07323792,89306.0,89305.0,0.05787]
[1765729472265,0.07323792,89306.0,89305.0,0.0284]
[1765729472469,0.07323792,89306.0,89305.0,0.05787]
[1765729473173,0.0587,89301.0,89300.0,0.0111972]
[1765729473469,0.02887,89301.0,89300.0,0.0690672]
[1765729473774,0.00116792,89306.0,89305.0,0.0690666]
[1765729474571,0.00016792,89306.0,89305.0,0.0690666]
[1765729475975,0.00016792,89306.0,89305.0,0.0700666]
[1765729476576,0.00116792,89306.0,89305.0,0.0700666]
[1765729478370,0.00116792,89306.0,89305.0,0.0690666]
[1765729478681,0.00116792,89306.0,89305.0,0.4298666]
[1765729480580,0.00016792,89306.0,89305.0,0.4298666]
[1765729481374,0.00016792,89306.0,89305.0,0.4308666]
[1765729482174,0.00016792,89306.0,89305.0,0.4318666]
[1765729482974,0.00016792,89306.0,89305.0,0.4308666]
[1765729483277,0.00016792,89306.0,89305.0,0.4318666]
[1765729483483,0.00016792,89306.0,89305.0,0.4308666]
[1765729483781,0.00016792,89306.0,89305.0,0.4318666]
[1765729483965,0.05886792,89306.0,89305.0,0.4318666]
[1765729484172,0.07525792,89306.0,89305.0,0.4318666]
[1765729484575,0.07525792,89306.0,89305.0,0.4308666]
[1765729484778,0.08645442,89306.0,89305.0,0.4308666]
[1765729485279,0.08645442,89306.0,89305.0,0.0700666]
[1765729485483,0.07525792,89306.0,89305.0,0.0690666]
[1765729486376,0.07625792,89306.0,89305.0,0.0690666]
[1765729488482,0.07625792,89306.0,89305.0,0.0111966]
[1765729489067,0.07625792,89306.0,89305.0,0.0690666]
[1765729491194,0.03003792,89306.0,89305.0,0.0690666]
[1765729491877,0.05986792,89306.0,89305.0,0.0690666]
[1765729504489,0.03003792,89306.0,89305.0,0.0690666]
[1765729504692,0.00116792,89306.0,89305.0,0.12929176]
[1765729504993,0.06876442,89306.0,89305.0,0.0690666]
[1765729505393,0.0675969,89303.0,89302.0,0.3608]
[1765729505581,0.0564,89293.0,89292.0,0.06022516]
[1765729505778,0.0845183,89292.0,89291.0,0.42102516]
[1765729505981,0.0675986,89289.0,89288.0,0.06022516]
[1765729506279,0.0675995,89282.0,89280.0,0.3608]
[1765729507084,0.0675995,89282.0,89281.0,0.01131329]
[1765729507287,0.0675995,89282.0,89281.0,0.03911329]
[1765729507590,0.0695995,89282.0,89281.0,0.00011369]
[1765729508881,0.0695995,89282.0,89281.0,0.05516369]
[1765729509077,0.0695995,89282.0,89281.0,0.00011369]
[1765729509297,0.0725995,89282.0,89281.0,0.00111369]
[1765729509483,0.0725995,89282.0,89281.0,0.05616369]
[1765729510989,0.4333995,89282.0,89281.0,0.00111369]
[1765729511190,0.4222,89282.0,89281.0,0.05616369]
[1765729511397,0.0614,89282.0,89281.0,0.05616369]
[1765729511592,0.003,89282.0,89281.0,0.05616369]
[1765729511897,0.002,89282.0,89281.0,0.05516369]
[1765729512187,0.005,89282.0,89281.0,0.05616369]
[1765729512584,0.002,89282.0,89281.0,0.05516369]
[1765729512779,0.004,89282.0,89281.0,0.05616369]
[1765729513192,1.04392,89301.0,89293.0,0.05505]
[1765729513193,0.067598,89294.0,89293.0,0.05505]
[1765729513391,0.08013338,89294.0,89293.0,0.05505]
[1765729514881,0.08213338,89294.0,89293.0,0.05505]
[1765729515500,0.08413338,89294.0,89293.0,0.05605]
[1765729515995,0.08213338,89294.0,89293.0,0.05505]
[1765729516192,0.08413338,89294.0,89293.0,0.05605]
[1765729516592,0.08213338,89294.0,89293.0,0.05505]
[1765729516794,0.08413338,89294.0,89293.0,0.05605]
[1765729517998,0.0604,89294.0,89293.0,0.05605]
[1765729518402,0.08412686,89294.0,89293.0,0.05605]
[1765729519199,0.004,89294.0,89293.0,0.05605]
[1765729522291,0.002,89294.0,89293.0,0.05705]
[1765729522891,0.05656792,89306.0,89305.0,0.05505]
[1765729523904,0.05656792,89306.0,89305.0,0.0662466]
[1765729525101,0.06776442,89306.0,89305.0,0.0662466]
[1765729525302,0.0111969,89303.0,89301.0,0.05505]
[1765729525503,0.01692,89299.0,89294.0,0.066248]
[1765729525701,0.0564,89291.0,89290.0,0.4270484]
[1765729526408,0.0662275,89299.0,89298.0,0.05809]
[1765729527597,0.0826375,89299.0,89298.0,0.05809]
[1765729527794,0.05503,89299.0,89298.0,0.05809]
[1765729528000,0.01397792,89306.0,89305.0,0.0692866]
[1765729528001,0.02728792,89306.0,89305.0,0.0692866]
[1765729528201,0.05519792,89306.0,89305.0,0.0692866]
[1765729528606,0.00016792,89306.0,89305.0,0.0692866]
[1765729528802,0.02728792,89306.0,89305.0,0.0692866]
[1765729529198,0.00016792,89306.0,89305.0,0.0692866]
[1765729530109,0.00116792,89306.0,89305.0,0.4300866]
[1765729532004,0.00016792,89306.0,89305.0,0.4300866]
[1765729532203,0.00016792,89306.0,89305.0,0.4310866]
[1765729532607,0.00016792,89306.0,89305.0,0.4300866]
[1765729532800,0.00016792,89306.0,89305.0,0.4310866]
[1765729533304,0.00016792,89306.0,89305.0,0.4330866]
[1765729534008,0.00016792,89306.0,89305.0,0.4310866]
[1765729534210,0.00016792,89306.0,89305.0,0.4330866]
[1765729536710,0.02928,89318.0,89317.0,0.0671251]
[1765729536902,1.40048,89332.0,89325.0,0.0671241]
[1765729536903,0.430524,89326.0,89325.0,0.0671241]
[1765729537206,0.430524,89326.0,89325.0,0.05593]
[1765729537999,0.430524,89326.0,89317.0,0.00016792]
[1765729538000,0.05853,89318.0,89317.0,0.00016792]
[1765729538505,0.08250143,89318.0,89317.0,0.00016792]
[1765729539410,0.08250143,89318.0,89317.0,0.00116792]
[1765729539411,0.08650143,89318.0,89317.0,0.00116792]
[1765729539615,0.01756,89313.0,89308.0,0.0400362]
[1765729539915,0.05853,89309.0,89308.0,0.0400362]
[1765729540215,0.07609,89306.0,89305.0,0.3608]
[1765729541612,0.07609,89306.0,89305.0,0.05593]
[1765729542201,0.06053,89306.0,89305.0,0.05693]
[1765729543111,0.06153,89306.0,89305.0,0.05693]
[1765729543423,0.003,89306.0,89305.0,0.05693]
[1765729544305,0.03228,89306.0,89305.0,0.05693]
[1765729544507,0.06153,89306.0,89305.0,0.05693]
[1765729544717,0.06153,89306.0,89305.0,0.02984]
[1765729544902,0.06153,89306.0,89305.0,0.05693]
[1765729547212,0.06153,89306.0,89305.0,0.02984]
[1765729547416,0.06153,89306.0,89305.0,0.001]
[1765729547924,0.06153,89306.0,89305.0,0.05693]
[1765729548221,0.003,89306.0,89305.0,0.05693]
[1765729548919,0.03228,89306.0,89305.0,0.05693]
[1765729551327,0.003,89306.0,89305.0,0.05693]
[1765729551709,0.06153,89306.0,89305.0,0.05693]
[1765729552825,0.07909,89306.0,89305.0,0.05693]
[1765729553619,0.10298231,89306.0,89305.0,0.001]
[1765729554215,0.10298231,89306.0,89305.0,0.02984]
[1765729554415,0.08542231,89306.0,89305.0,0.05693]
[1765729556325,0.06153,89306.0,89305.0,0.05693]
[1765729556723,0.08542628,89306.0,89305.0,0.05693]
[1765729557123,0.08542628,89306.0,89305.0,0.02984]
[1765729559331,0.08542628,89306.0,89305.0,0.05831]
[1765729561545,0.10173628,89306.0,89305.0,0.001]
[1765729562851,0.10173628,89306.0,89305.0,0.02956]
[1765729563052,0.08542628,89306.0,89305.0,0.0692266]
[1765729563644,0.10173628,89306.0,89305.0,0.0692266]
[1765729563854,0.10173628,89306.0,89305.0,0.001]
[1765729564944,0.0680175,89298.0,89297.0,0.00016792]
[1765729565141,0.09191378,89298.0,89297.0,0.00016792]
[1765729566946,0.09191378,89298.0,89297.0,0.00116792]
[1765729567447,0.09291378,89298.0,89297.0,0.00116792]
[1765729571753,0.08171628,89298.0,89297.0,0.00116792]
[1765729571948,0.05451628,89298.0,89297.0,0.05819792]
[1765729572153,0.001,89298.0,89297.0,0.05819792]
[1765729572760,0.03062,89298.0,89297.0,0.05819792]
[1765729573460,0.05782,89298.0,89297.0,0.05819792]
[1765729574161,0.001,89298.0,89297.0,0.05819792]
[1765729575453,0.01136352,89314.0,89310.0,0.05703]
[1765729575652,0.44151726,89311.0,89310.0,0.05703]
[1765729576055,0.08071726,89311.0,89310.0,0.05703]
[1765729576752,0.08271726,89311.0,89310.0,0.05703]
[1765729577355,0.06082,89311.0,89310.0,0.05803]
[1765729577554,0.06182,89311.0,89310.0,0.05803]
[1765729577951,0.001,89311.0,89310.0,0.05803]
[1765729578156,0.003,89311.0,89310.0,0.05803]
[1765729579056,0.002,89311.0,89310.0,0.05803]
[1765729580465,0.00016792,89314.0,89313.0,0.05703]
[1765729580864,0.05698792,89314.0,89313.0,0.05703]
[1765729582062,0.05898792,89314.0,89313.0,0.05703]
[1765729583554,0.05798792,89314.0,89313.0,0.05703]
[1765729583755,0.03178792,89314.0,89313.0,0.07392]
[1765729584267,0.03278792,89314.0,89313.0,0.07492]
[1765729585265,0.03078792,89314.0,89313.0,0.07392]
[1765729585656,0.03178792,89314.0,89313.0,0.07392]
[1765729585970,0.05898792,89314.0,89313.0,0.05703]
[1765729586261,0.07546,89313.0,89312.0,0.3608]
[1765729586467,0.07546,89313.0,89312.0,0.38946]
[1765729586863,0.07546,89313.0,89312.0,0.4192]
[1765729587657,0.07646,89313.0,89312.0,0.4192]
[1765729588360,0.07846,89313.0,89312.0,0.4202]
[1765729589569,0.07946,89313.0,89312.0,0.4202]
[1765729590766,0.07846,89313.0,89312.0,0.4202]
[1765729591777,0.003,89313.0,89312.0,0.4202]
[1765729591956,0.00016792,89314.0,89312.0,0.4202]
[1765729591957,0.05758,89329.0,89328.0,0.0584]
[1765729592267,0.08152464,89329.0,89328.0,0.0584]
[1765729593170,0.08552464,89329.0,89328.0,0.0584]
[1765729593759,0.06158,89329.0,89328.0,0.0584]
[1765729593960,0.06658,89329.0,89328.0,0.0594]
[1765729594270,0.03722,89329.0,89328.0,0.0594]
[1765729594467,0.03722,89329.0,89328.0,0.4202]
[1765729594669,0.06658,89329.0,89328.0,0.4202]
[1765729595069,0.06558,89329.0,89328.0,0.4202]
[1765729595462,0.06158,89329.0,89328.0,0.4202]
[1765729595672,0.06358,89329.0,89328.0,0.4202]
[1765729596669,0.06358,89329.0,89328.0,0.0594]
[1765729598869,0.06358,89329.0,89328.0,0.001]
[1765729599460,0.06358,89329.0,89328.0,0.0594]
[1765729600861,0.006,89329.0,89328.0,0.0594]
[1765729607775,0.06358,89329.0,89328.0,0.0594]
[1765729609283,0.006,89329.0,89328.0,0.0594]
[1765729610783,0.006,89329.0,89328.0,0.0705938]
[1765729612287,0.06358,89329.0,89328.0,0.0705938]
[1765729612988,0.06358,89329.0,89328.0,0.0594]
[1765729614283,0.06358,89329.0,89328.0,0.02966]
[1765729614473,0.06358,89329.0,89328.0,0.001]
[1765729616578,0.0673746,89321.0,89320.0,0.00016792]
[1765729617785,0.0683746,89321.0,89320.0,0.00016792]
[1765729617987,0.0703746,89321.0,89320.0,0.00016792]
[1765729619186,0.0673759,89311.0,89310.0,0.0698459]
[1765729620182,0.0673759,89311.0,89310.0,0.05865]
[1765729620387,0.0673759,89311.0,89310.0,0.06065]
[1765729620585,0.0673759,89311.0,89310.0,0.002]
[1765729628688,0.0111969,89303.0,89302.0,0.00016792]
[1765729628894,0.0673769,89303.0,89302.0,0.05881792]
[1765729629898,0.0673769,89303.0,89302.0,0.06181792]
[1765729630097,0.0673769,89303.0,89302.0,0.06381792]
[1765729630797,0.05618,89303.0,89302.0,0.06381792]
[1765729637902,0.02839,89303.0,89302.0,0.06381792]
[1765729638402,0.05618,89303.0,89302.0,0.06381792]
[1765729642396,0.02839,89303.0,89302.0,0.06381792]
[1765729643202,0.05618,89303.0,89302.0,0.06381792]
[1765729644703,0.05618,89303.0,89302.0,0.00516792]
[1765729645098,0.05618,89303.0,89302.0,0.07501492]
[1765729645298,0.05618,89303.0,89302.0,0.06381792]
[1765729645501,0.05618,89303.0,89302.0,0.00516792]
[1765729646095,0.05618,89303.0,89302.0,0.03497792]
[1765729646501,0.05618,89303.0,89302.0,0.06211792]
[1765729646905,0.02839,89303.0,89302.0,0.06211792]
[1765729647104,0.05797,89303.0,89302.0,0.06211792]
[1765729648500,0.05797,89303.0,89302.0,0.00516792]
[1765729649905,0.05797,89303.0,89302.0,0.03327792]
[1765729650101,0.05797,89303.0,89302.0,0.04447492]
[1765729650310,0.05797,89303.0,89302.0,0.07190492]
[1765729650698,0.02839,89303.0,89302.0,0.07190492]
[1765729652906,0.38862,89305.0,89304.0,0.07208]
[1765729653107,0.3608,89305.0,89304.0,0.07208]
[1765729653498,0.38862,89305.0,89304.0,0.07208]
[1765729653697,0.41814,89305.0,89304.0,0.07208]
[1765729654113,0.38862,89305.0,89304.0,0.07408]
[1765729654406,0.38862,89305.0,89304.0,0.07508]
[1765729654806,0.41814,89305.0,89304.0,0.05796]
[1765729656609,0.41814,89305.0,89304.0,0.003]
[1765729657016,0.0685378,89296.0,89295.0,0.0400036]
[1765729657306,0.05734,89294.0,89293.0,0.0400036]
[1765729657503,0.3719978,89296.0,89292.0,0.0400036]
[1765729657504,0.0685381,89293.0,89292.0,0.0400036]
[1765729658096,0.0685385,89290.0,89289.0,0.41576]
[1765729658299,0.09239859,89290.0,89289.0,0.41576]
[1765729659606,0.09239859,89290.0,89289.0,0.41676]
[1765729659814,0.02782,89290.0,89289.0,0.41676]
[1765729660312,0.05734,89290.0,89289.0,0.41676]
[1765729660914,0.05734,89290.0,89289.0,0.41776]
[1765729665315,0.0685379,89296.0,89295.0,0.0661579]
[1765729665502,0.09238394,89296.0,89295.0,0.0661579]
[1765729665919,0.05166604,89296.0,89295.0,0.0661579]
[1765729666418,0.08118604,89296.0,89295.0,0.0661579]
[1765729666616,0.08218604,89296.0,89295.0,0.0661579]
[1765729667707,0.08218604,89296.0,89295.0,0.05496]
[1765729667907,0.08218604,89296.0,89295.0,0.02753]
[1765729668917,0.08218604,89296.0,89295.0,0.05496]
[1765729669922,0.0685385,89290.0,89289.0,0.4269586]
[1765729670214,0.05734,89290.0,89289.0,0.4269586]
[1765729671017,0.05734,89290.0,89289.0,0.4279586]
[1765729671721,0.05734,89290.0,89289.0,0.4289586]
[1765729682427,0.09904409,89290.0,89289.0,0.4289586]
[1765729683530,0.08141409,89290.0,89289.0,0.4289586]
[1765729684831,0.05109409,89290.0,89289.0,0.4289586]
[1765729685127,0.02702,89290.0,89289.0,0.4289586]
[1765729685328,0.051101,89290.0,89289.0,0.4289586]
[1765729685930,0.0654372,89301.0,89300.0,0.0689273]
[1765729686132,0.08951781,89301.0,89300.0,0.0689273]
[1765729687031,0.08951781,89301.0,89300.0,0.0719273]
[1765729687934,0.09051781,89301.0,89300.0,0.0739273]
[1765729688830,0.05210061,89301.0,89300.0,0.0911273]
[1765729689033,0.07932061,89301.0,89300.0,0.0739273]
[1765729689328,0.07932061,89301.0,89300.0,0.005]
[1765729689735,0.0793264,89301.0,89300.0,0.005]
[1765729691234,0.0793264,89301.0,89300.0,0.03285]
[1765729692547,0.0793264,89301.0,89300.0,0.06273]
[1765729696228,0.0793264,89301.0,89300.0,0.005]
[1765729697635,0.07932784,89301.0,89300.0,0.03285]
[1765729697834,0.07932784,89301.0,89300.0,0.005]
[1765729698132,0.07932784,89301.0,89300.0,0.06273]
[1765729701829,0.07932784,89301.0,89300.0,0.07993]
[1765729702340,0.02508784,89301.0,89300.0,0.07993]
[1765729702641,0.02508784,89301.0,89300.0,0.44073]
[1765729702943,0.02508784,89301.0,89300.0,0.50080838]
[1765729703334,0.001,89301.0,89300.0,0.44073]
[1765729705438,0.05524,89301.0,89300.0,0.44073]
[1765729708232,0.05524,89301.0,89300.0,0.07993]
[1765729709147,0.001,89301.0,89300.0,0.07993]
[1765729716447,0.70084,89314.0,89310.0,0.07157]
[1765729716653,0.02439399,89313.0,89310.0,0.443566]
[1765729716844,0.0111945,89322.0,89310.0,0.443566]
[1765729717454,0.0689645,89322.0,89321.0,0.0665646]
[1765729717751,0.08216139,89322.0,89321.0,0.0665646]
[1765729718053,0.08216139,89322.0,89321.0,0.05537]
[1765729718838,0.05777,89317.0,89316.0,0.02837]
[1765729719044,0.08216139,89317.0,89316.0,0.02837]
[1765729719446,0.0689655,89314.0,89313.0,0.02853792]
[1765729719850,0.0689655,89314.0,89313.0,0.05553792]
[1765729720753,0.0699655,89314.0,89313.0,0.05553792]
[1765729720961,0.0699655,89314.0,89313.0,0.02853792]
[1765729721361,0.0699655,89314.0,89313.0,0.05553792]
[1765729721757,0.09434682,89314.0,89313.0,0.00016792]
[1765729722163,0.09434682,89314.0,89313.0,0.02853792]
[1765729722560,0.09434682,89314.0,89313.0,0.05553792]
[1765729723058,0.09434682,89314.0,89313.0,0.02853792]
[1765729723246,0.09434682,89314.0,89313.0,0.00016792]
[1765729723663,0.09434682,89314.0,89313.0,0.02853792]
[1765729723851,0.09434682,89314.0,89313.0,0.00016792]
[1765729725660,0.09434682,89314.0,89313.0,0.02853792]
[1765729725864,0.09434682,89314.0,89313.0,0.05553792]
[1765729728558,0.09434682,89314.0,89313.0,0.02853792]
[1765729728758,0.09434682,89314.0,89313.0,0.05553792]
[1765729730959,0.08315132,89314.0,89313.0,0.05553792]
[1765729735367,0.02538132,89314.0,89313.0,0.05553792]
[1765729736167,0.05393132,89314.0,89313.0,0.05553792]
[1765729736570,0.08118132,89314.0,89313.0,0.05553792]
[1765729737372,0.08018132,89314.0,89313.0,0.05553792]
[1765729737672,0.08118132,89314.0,89313.0,0.05553792]
[1765729744276,0.08118132,89314.0,89313.0,0.00016792]
[1765729744478,0.08118132,89314.0,89313.0,0.05516792]
[1765729746277,0.08118132,89314.0,89313.0,0.00016792]
[1765729746484,0.08118132,89314.0,89313.0,0.02772792]
[1765729747670,0.08118132,89314.0,89313.0,0.00016792]
[1765729748271,0.08118132,89314.0,89313.0,0.02772792]
[1765729751476,0.08118132,89314.0,89313.0,0.05516792]
[1765729758787,0.08147338,89314.0,89313.0,0.05516792]
[1765729767792,0.02567338,89314.0,89313.0,0.05516792]
[1765729767992,0.05395338,89314.0,89313.0,0.05516792]
[1765729768481,0.08234338,89314.0,89313.0,0.05516792]
[1765729770478,0.08234338,89314.0,89313.0,0.00016792]
[1765729770992,0.08234338,89314.0,89313.0,0.02896792]
[1765729771187,0.08234338,89314.0,89313.0,0.05614792]
[1765729772395,0.08234338,89314.0,89313.0,0.02896792]
[1765729772897,0.08234338,89314.0,89313.0,0.05614792]
[1765729779791,0.02567338,89314.0,89313.0,0.05614792]
[1765729779992,0.08234338,89314.0,89313.0,0.05614792]
[1765729794608,0.08236882,89314.0,89313.0,0.05614792]
[1765729797013,0.08236882,89314.0,89313.0,0.00016792]
[1765729797313,0.08236882,89314.0,89313.0,0.06562352]
[1765729801210,0.09356432,89314.0,89313.0,0.02742792]
[1765729801410,0.09356432,89314.0,89313.0,0.00016792]
[1765729801610,0.09356432,89314.0,89313.0,0.02742792]
[1765729801816,0.0675866,89305.0,89304.0,0.44813838]
[1765729802013,0.0675866,89305.0,89281.0,0.0111996]
[1765729802014,0.05639,89299.0,89298.0,0.05426]
[1765729802218,0.08108882,89299.0,89298.0,0.05426]
[1765729803314,0.08108882,89299.0,89298.0,0.05526]
[1765729803820,0.02469882,89299.0,89298.0,0.05526]
[1765729804018,0.02724,89306.0,89305.0,0.05426]
[1765729804212,0.08107666,89306.0,89305.0,0.05426]
[1765729805220,0.02468666,89306.0,89305.0,0.0654566]
[1765729806125,0.02468666,89306.0,89305.0,0.0674566]
[1765729806826,0.02468666,89306.0,89305.0,0.0694566]
[1765729809921,0.06052563,89323.0,89305.0,0.0694566]
[1765729809922,0.06052563,89325.0,89323.0,0.0654544]
[1765729810128,0.3608,89327.0,89326.0,0.065454]
[1765729810420,0.38546961,89327.0,89326.0,0.065454]
[1765729811314,0.02466961,89327.0,89326.0,0.07668822]
[1765729811519,0.0675831,89334.0,89333.0,0.0654531]
[1765729811719,0.09223739,89334.0,89333.0,0.0654531]
[1765729811921,0.08104429,89334.0,89333.0,0.0654531]
[1765729812921,0.08604429,89334.0,89333.0,0.0664531]
[1765729813424,0.08104429,89334.0,89333.0,0.0654531]
[1765729813622,0.08304429,89334.0,89333.0,0.0664531]
[1765729813827,0.003,89334.0,89333.0,0.0664531]
[1765729814723,0.37823,89365.0,89355.0,0.05426]
[1765729814925,1.08577332,89356.0,89355.0,0.07145]
[1765729815222,0.41719,89356.0,89355.0,0.07145]
[1765729815623,0.41719,89356.0,89355.0,0.05426]
[1765729815816,0.42119,89356.0,89355.0,0.05526]
[1765729816615,0.42419,89356.0,89355.0,0.05526]
[1765729818619,0.3678,89356.0,89355.0,0.05526]
[1765729818817,0.39504,89356.0,89355.0,0.05526]
[1765729819015,0.03424,89356.0,89355.0,0.05526]
[1765729819219,0.06339,89356.0,89355.0,0.05526]
[1765729822019,0.06339,89356.0,89355.0,0.07245]
[1765729822223,0.007,89356.0,89355.0,0.07245]
[1765729824725,0.00016792,89364.0,89363.0,0.0654494]
[1765729825124,0.0111877,89377.0,89373.0,0.0654481]
[1765729825328,0.41719,89374.0,89373.0,0.05426]
[1765729827835,0.00016792,89382.0,89381.0,0.0677071]
[1765729828129,0.0679962,89389.0,89388.0,0.05652]
[1765729828934,0.3608,89392.0,89379.0,0.30704842]
[1765729828935,0.05681,89380.0,89379.0,0.30704842]
[1765729829141,0.05681,89380.0,89379.0,0.05652]
[1765729830738,0.05681,89380.0,89379.0,0.02884]
[1765729830944,0.05681,89374.0,89373.0,0.00016782]
[1765729831239,0.41761,89374.0,89373.0,0.00016782]
[1765729831631,0.05681,89351.0,89350.0,0.0677109]
[1765729832222,0.07365,89362.0,89361.0,0.05652]
[1765729833036,0.05681,89362.0,89361.0,0.05652]
[1765729833439,0.02887,89362.0,89361.0,0.05652]
[1765729833633,0.38967,89366.0,89365.0,0.05652]
[1765729833938,0.41761,89366.0,89365.0,0.05652]
[1765729835038,0.05681,89366.0,89365.0,0.05752]
[1765729835626,0.3608,89369.0,89368.0,0.05652]
[1765729835627,0.38967,89369.0,89368.0,0.05652]
[1765729835833,0.05681,89369.0,89368.0,0.05652]
[1765729837329,0.05681,89369.0,89368.0,0.05752]
[1765729840137,0.0814227,89369.0,89368.0,0.05752]
[1765729840849,0.0814227,89369.0,89368.0,0.001]
[1765729841140,0.0814227,89369.0,89368.0,0.05752]
[1765729841531,0.0246127,89369.0,89368.0,0.05752]
[1765729841939,0.0266127,89369.0,89368.0,0.05652]
[1765729842136,0.00016782,89370.0,89368.0,0.05652]
[1765729842441,0.3608,89377.0,89376.0,0.0850077]
[1765729842651,0.38967,89377.0,89376.0,0.0850077]
[1765729843747,0.41761,89377.0,89376.0,0.0850077]
[1765729844136,0.05681,89377.0,89376.0,0.0850077]
[1765729844338,0.06816452,89385.0,89384.0,0.0677067]
[1765729845747,0.06916452,89385.0,89384.0,0.0677067]